bitfinex-derivatives/quotes_ETHF0:USTF0_20251203
["timestamp","ask_amount","ask_price","bid_price","bid_amount"]
[1764738608840,3.4658,3066.4,3066.3,3.2078]
[1764738609037,3.4658,3066.4,3065.5,0.3923]
[1764738609247,44.2658,3066.4,3065.5,0.3923]
[1764738609548,44.2658,3066.4,3065.5,0.3963616]
[1764738609751,0.00488591,3066.3,3065.6,0.00488591]
[1764738609935,0.00834024,3066.3,3065.6,0.00488591]
[1764738610140,0.00834024,3066.3,3065.9,3.2078]
[1764738611444,3.4658,3065.7,3065.6,0.00488591]
[1764738612951,3.4658,3065.6,3065.5,3.2118616]
[1764738613151,3.4658,3065.0,3064.9,3.2078]
[1764738613447,1.7754,3064.6,3064.4,11.728]
[1764738613748,3.2078,3064.8,3064.5,3.5038]
[1764738614148,1.7754,3064.6,3064.5,1.87767735]
[1764738614441,3.4658,3064.6,3064.5,0.00237735]
[1764738615642,3.2078,3064.8,3064.5,3.50617735]
[1764738615845,0.983,3065.5,3064.5,3.50617735]
[1764738615846,6.6736,3065.2,3064.5,1.01727735]
[1764738616051,3.4658,3064.6,3064.5,0.00237735]
[1764738617146,3.2078,3064.8,3064.5,3.50617735]
[1764738617346,3.4658,3064.6,3064.5,0.00237735]
[1764738617746,3.2078,3065.2,3064.8,1.8753]
[1764738617947,1.7754,3064.9,3064.8,1.8753]
[1764738618154,3.2078,3065.2,3064.8,3.5038]
[1764738618461,1.7754,3064.9,3064.8,3.5038]
[1764738618644,3.4658,3064.9,3064.8,1.8753]
[1764738618947,3.2078,3065.2,3064.8,3.5038]
[1764738619341,6.6736,3065.2,3064.5,1.01727735]
[1764738621049,3.4658,3064.6,3064.5,0.00237735]
[1764738621549,3.2078,3064.8,3064.5,3.50617735]
[1764738621759,3.2078,3064.8,3064.5,0.00237735]
[1764738621760,3.4658,3064.6,3064.5,0.00237735]
[1764738621951,3.2078,3064.8,3064.5,3.50617735]
[1764738622953,4.9832,3064.8,3064.7,1.8753]
[1764738623146,4.9832,3064.8,3064.7,3.5038]
[1764738623348,4.9832,3064.8,3064.7,1.8753]
[1764738623649,6.6736,3064.8,3064.7,1.8753]
[1764738623845,4.9832,3064.8,3064.7,1.8753]
[1764738624051,4.9832,3064.8,3064.7,3.5038]
[1764738624552,3.2078,3064.8,3064.7,3.5038]
[1764738625958,4.9832,3064.8,3064.7,3.5038]
[1764738626143,4.9832,3064.8,3064.7,1.8753]
[1764738626349,6.6736,3064.8,3064.7,1.8753]
[1764738626549,6.6736,3064.8,3064.5,1.01727735]
[1764738627153,4.9832,3064.8,3064.7,3.5038]
[1764738627355,6.6736,3064.8,3064.7,1.8753]
[1764738628256,6.6736,3064.8,3064.5,1.01727735]
[1764738628650,6.6736,3064.8,3064.7,1.8753]
[1764738629263,4.9832,3064.8,3064.7,3.5038]
[1764738629657,3.2078,3064.8,3064.7,3.5038]
[1764738630157,3.2078,3065.2,3065.1,3.5038]
[1764738630360,4.9832,3065.2,3065.1,3.5038]
[1764738630950,6.6736,3065.2,3065.1,1.8753]
[1764738631151,6.6736,3065.2,3064.7,0.16311]
[1764738631351,6.6736,3065.2,3064.5,1.01727735]
[1764738631655,3.2078,3065.2,3064.5,4.52107735]
[1764738632649,6.6736,3065.2,3065.1,1.8753]
[1764738634165,3.2078,3065.2,3065.1,3.5038]
[1764738634463,5.0355,3065.2,3065.1,3.5038]
[1764738635064,6.8012,3065.2,3065.1,1.8753]
[1764738635765,3.2078,3065.2,3065.1,3.6561]
[1764738635960,5.1318,3065.2,3065.1,3.6561]
[1764738636362,7.0148,3065.2,3064.5,1.01727735]
[1764738636667,3.807,3064.8,3064.7,3.6831]
[1764738636960,3.807,3064.6,3064.5,0.00237735]
[1764738637165,4.5212565,3064.6,3064.5,1.85697735]
[1764738638468,4.5212565,3064.6,3064.5,0.00237735]
[1764738638668,3.807,3063.9,3063.8,5.0624]
[1764738638961,3.2078,3064.4,3063.8,3.6831]
[1764738639167,0.72873505,3064.3,3063.8,3.6831]
[1764738639368,2.65273505,3064.2,3064.1,3.6831]
[1764738639566,4.53573505,3064.2,3064.1,1.8546]
[1764738639766,4.53879515,3064.2,3064.1,1.85739075]
[1764738639962,4.53879515,3064.2,3064.1,0.00279075]
[1764738641266,4.53879515,3064.2,3064.1,3.68589075]
[1764738641470,2.65579515,3064.2,3064.1,3.68589075]
[1764738641666,4.53879515,3064.2,3064.1,1.85739075]
[1764738641969,4.53879515,3064.2,3064.1,0.00279075]
[1764738642363,3.807,3063.9,3063.8,1.85790371]
[1764738642562,4.53573505,3063.9,3063.8,0.00330371]
[1764738643266,4.53573505,3063.9,3063.8,0.00607785]
[1764738643673,1.924,3063.1,3063.0,8.171]
[1764738643969,3.43054573,3063.9,3063.0,8.171]
[1764738644180,0.72553168,3063.8,3063.0,8.171]
[1764738644467,6.01618907,3064.0,3063.0,8.171]
[1764738644468,0.72553168,3063.7,3063.0,8.171]
[1764738644667,0.72553168,3063.6,3063.0,8.17383352]
[1764738644871,6.01618907,3064.0,3063.4,1.8546]
[1764738644872,4.53253168,3063.5,3063.4,1.8546]
[1764738645067,3.2078,3064.0,3063.5,1.1169]
[1764738645372,4.2527,3064.0,3063.5,1.1169]
[1764738645577,1.924,3063.6,3063.5,4.8]
[1764738646074,4.2527,3064.0,3063.5,4.8]
[1764738647275,5.1318,3064.0,3063.9,1.8546]
[1764738647568,0.0030601,3064.2,3064.1,3.6831]
[1764738647870,3.8100601,3064.2,3063.7,3.2078]
[1764738648075,1.924,3063.8,3063.7,6.8909]
[1764738648276,3.807,3063.8,3063.7,1.8546]
[1764738648466,1.924,3063.6,3063.5,4.8]
[1764738648776,7.0148,3064.0,3063.9,1.8546]
[1764738649177,3.2078,3064.0,3063.9,3.6831]
[1764738650276,0.0030601,3064.2,3063.9,3.6831]
[1764738650474,0.0030601,3064.2,3064.1,3.6831]
[1764738652471,3.8100601,3064.2,3064.1,1.8546]
[1764738652671,0.0030601,3064.2,3064.1,3.6831]
[1764738655383,3.8100601,3064.2,3064.1,1.8546]
[1764738656475,3.807,3063.8,3063.7,2.01777]
[1764738656675,1.924,3063.8,3063.7,3.84627]
[1764738656876,3.8100601,3064.2,3064.1,1.8546]
[1764738657076,3.807,3063.8,3063.7,1.8546]
[1764738658081,1.924,3063.6,3063.5,4.8]
[1764738658287,3.807,3063.6,3063.5,3.6831]
[1764738658783,1.924,3063.4,3063.3,10.9531]
[1764738659686,3.807,3063.4,3063.3,7.27]
[1764738660181,1.4035,3063.9,3063.3,7.27]
[1764738660182,1.4035,3063.9,3063.3,10.9531]
[1764738660484,1.924,3063.4,3063.3,10.9531]
[1764738660984,3.807,3063.4,3063.3,10.9531]
[1764738661184,3.807,3063.4,3063.3,7.27]
[1764738662073,3.807,3063.1,3063.0,0.00283352]
[1764738662274,3.807,3063.1,3063.0,1.85743352]
[1764738662483,3.807,3063.1,3063.0,0.00283352]
[1764738663189,7.0148,3063.1,3063.0,0.00283352]
[1764738663488,7.73619443,3063.1,3063.0,0.00283352]
[1764738664085,7.73619443,3063.1,3063.0,4.73093352]
[1764738664086,3.2078,3063.1,3063.0,4.73093352]
[1764738666989,6.742,3063.1,3063.0,0.00283352]
[1764738667591,6.742,3063.1,3063.0,1.77143352]
[1764738668393,3.2078,3063.1,3063.0,4.64493352]
[1764738668885,4.8329,3063.1,3063.0,4.64493352]
[1764738669290,4.8329,3063.1,3063.0,0.00283352]
[1764738669291,6.742,3063.1,3063.0,0.00283352]
[1764738669683,7.45069728,3063.1,3063.0,0.00283352]
[1764738670690,6.742,3063.1,3063.0,1.77143352]
[1764738670988,6.742,3063.1,3063.0,0.00283352]
[1764738671195,1.1525,3063.0,3062.2,3.2078]
[1764738671385,0.00489396,3062.9,3062.2,3.2078]
[1764738671986,3.5342,3062.3,3062.2,6.745]
[1764738672190,3.5342,3062.3,3062.2,0.00339887]
[1764738673289,3.91591016,3062.3,3061.5,4.6541]
[1764738673497,3.2078,3062.3,3061.5,4.6541]
[1764738674591,3.2078,3062.3,3061.5,4.65821393]
[1764738677794,6.742,3061.9,3061.8,3.5372]
[1764738677997,6.74609021,3061.9,3061.5,1.12101393]
[1764738678197,6.74609021,3061.9,3061.8,1.7686]
[1764738678388,6.74609021,3061.9,3061.5,1.12101393]
[1764738679196,1.6251,3061.6,3061.5,4.65821393]
[1764738680090,3.5342,3061.6,3061.5,1.77271393]
[1764738680297,3.5342,3061.6,3061.5,0.00411393]
[1764738680886,1.0578,3061.5,3060.5,4.3127]
[1764738681096,3.5342,3060.6,3060.5,4.9764]
[1764738681295,3.5342,3060.6,3060.5,3.2078]
[1764738681806,3.5342,3060.6,3060.5,3.21021378]
[1764738682002,3.5342,3060.1,3059.6,3.2078]
[1764738682199,3.5342,3060.1,3060.0,3.5372]
[1764738682399,4.8329,3060.2,3060.1,3.5372]
[1764738682792,3.2078,3060.2,3060.1,3.5372]
[1764738682993,4.8329,3060.2,3060.1,3.54134361]
[1764738684500,3.2078,3060.2,3060.1,3.54134361]
[1764738685292,4.8329,3060.2,3060.1,3.54134361]
[1764738686401,3.2078,3060.2,3060.1,3.54134361]
[1764738689199,4.8329,3060.7,3060.6,3.5372]
[1764738689402,3.2078,3060.7,3060.6,3.5372]
[1764738690303,6.742,3060.7,3060.6,3.5372]
[1764738690503,6.742,3060.7,3060.1,0.16750361]
[1764738690906,6.742,3060.7,3060.6,1.7686]
[1764738691397,6.742,3060.7,3060.1,3.70470361]
[1764738691398,1.6251,3060.2,3060.1,3.70470361]
[1764738691601,3.5342,3060.2,3060.1,0.00414361]
[1764738692897,3.5342,3060.2,3060.1,3.54134361]
[1764738693094,3.2078,3060.3,3060.1,3.54134361]
[1764738693405,3.2078,3060.3,3060.2,3.5208]
[1764738693609,0.4789,3061.0,3060.1,0.00414361]
[1764738693610,6.7872,3060.7,3060.6,3.5208]
[1764738695907,3.2078,3060.7,3060.6,3.5208]
[1764738697198,9.0142,3061.1,3061.0,3.8167]
[1764738697604,3.2078,3061.1,3061.0,4.9366]
[1764738698108,5.1488,3061.1,3061.0,4.9366]
[1764738698507,3.2078,3061.1,3061.0,4.9366]
[1764738698710,0.00489396,3061.3,3061.0,4.9366]
[1764738698711,0.00489396,3061.3,3061.2,3.8167]
[1764738699214,1.94589396,3061.3,3061.2,3.8167]
[1764738699602,0.00489396,3061.3,3061.2,3.8167]
[1764738700203,1.94589396,3061.3,3061.2,3.8167]
[1764738700410,0.00489396,3061.3,3061.2,3.8167]
[1764738700605,0.00489396,3061.3,3060.4,6.06165884]
[1764738700606,3.8192,3060.3,3060.1,0.00414361]
[1764738700813,3.8192,3060.2,3060.1,0.00414361]
[1764738703515,4.53004518,3060.2,3059.4,3.2078]
[1764738703811,3.8192,3060.2,3059.4,3.2078]
[1764738704014,0.71087614,3060.1,3059.5,1.1199]
[1764738704205,3.2078,3060.4,3059.5,1.1199]
[1764738704405,0.71081045,3060.3,3059.5,1.1199]
[1764738704710,0.71081045,3060.2,3059.5,1.12299944]
[1764738704912,3.2078,3060.4,3059.5,1.12299944]
[1764738705108,0.71081103,3060.3,3059.5,1.12299944]
[1764738705311,0.71081103,3060.2,3059.5,1.12299944]
[1764738705512,3.2078,3060.0,3059.5,1.12299944]
[1764738705716,4.274,3060.0,3059.5,1.12299944]
[1764738707513,3.8192,3059.6,3059.5,1.90499944]
[1764738707706,1.94403635,3059.6,3059.5,3.81979944]
[1764738708007,0.00303635,3059.6,3059.5,3.81979944]
[1764738708207,0.00303635,3059.6,3059.5,4.93969944]
[1764738709711,0.00303635,3059.6,3059.5,5.10308944]
[1764738712418,5.1488,3060.4,3060.3,3.8167]
[1764738713406,5.15142998,3060.4,3060.3,3.8167]
[1764738714009,7.02962998,3060.4,3060.3,3.8167]
[1764738715213,5.15142998,3060.4,3060.3,3.8167]
[1764738715514,7.02962998,3060.4,3060.3,3.8167]
[1764738717109,5.15142998,3060.4,3060.3,3.8167]
[1764738717312,7.02962998,3060.4,3060.3,1.9019]
[1764738719019,3.8192,3060.1,3060.0,4.9366]
[1764738720014,3.8192,3060.1,3060.0,3.8167]
[1764738720522,3.8192,3060.1,3060.0,1.9019]
[1764738721016,3.8192,3059.6,3059.5,4.93969944]
[1764738721328,3.8192,3059.6,3059.5,3.81979944]
[1764738723616,1.6176,3059.1,3059.0,8.7579]
[1764738723823,1.6176,3059.1,3059.0,10.5344]
[1764738724621,1.6176,3059.1,3059.0,10.53767655]
[1764738724920,3.424,3059.1,3059.0,10.53767655]
[1764738725121,3.424,3059.1,3059.0,7.64127655]
[1764738725420,3.424,3059.1,3059.0,5.95827655]
[1764738726216,3.424,3058.4,3058.3,1.683]
[1764738726518,4.8254,3058.4,3058.3,3.4595]
[1764738726828,6.6318,3058.4,3058.3,1.683]
[1764738727018,6.6318,3058.4,3058.3,3.4595]
[1764738727210,6.6318,3058.4,3058.3,3.46297079]
[1764738729927,6.6318,3058.4,3058.3,0.00347079]
[1764738730228,6.6318,3058.4,3058.3,3.46297079]
[1764738730526,6.6318,3058.4,3058.3,0.00347079]
[1764738730718,6.6318,3058.4,3058.3,1.68647079]
[1764738731622,6.6318,3058.4,3058.3,0.00347079]
[1764738732124,3.424,3058.1,3058.0,3.4595]
[1764738733126,3.42690753,3058.1,3058.0,3.46264307]
[1764738733628,1.62050753,3058.1,3058.0,4.58844307]
[1764738734819,1.62050753,3058.1,3058.0,1.68614307]
[1764738734820,3.42690753,3058.1,3058.0,1.68614307]
[1764738735022,3.42690753,3058.1,3058.0,4.58844307]
[1764738735222,3.42690753,3058.1,3058.0,3.46264307]
[1764738735930,3.42690753,3058.1,3058.0,1.68614307]
[1764738736429,3.42690753,3058.1,3058.0,3.46264307]
[1764738736825,0.00290753,3058.1,3058.0,4.58844307]
[1764738737831,0.00290753,3058.1,3058.0,4.75191307]
[1764738738533,3.07021714,3058.4,3058.3,3.62295]
[1764738738843,3.07021714,3058.4,3058.3,16.10395]
[1764738739032,3.2078,3058.8,3058.7,3.4595]
[1764738739531,4.8293864,3058.8,3058.7,3.4595]
[1764738739926,1.6215864,3058.8,3058.7,3.4595]
[1764738740237,0.0039864,3058.8,3058.7,3.4595]
[1764738741945,0.0039864,3058.8,3058.7,3.62293]
[1764738742247,0.00490219,3059.4,3059.3,3.4595]
[1764738742440,0.00490219,3059.4,3059.3,8.57857906]
[1764738742640,4.8254,3060.3,3060.2,3.4595]
[1764738743148,4.82794295,3060.3,3060.2,3.46199155]
[1764738743346,6.63434295,3060.3,3060.2,3.46199155]
[1764738743549,6.63434295,3060.3,3060.2,1.68549155]
[1764738743754,6.63434295,3060.3,3060.2,3.46199155]
[1764738744050,6.63434295,3060.3,3060.2,1.68549155]
[1764738744746,6.63434295,3060.3,3060.2,0.00249155]
[1764738746547,6.63434295,3060.3,3060.2,1.68549155]
[1764738746944,6.63434295,3060.3,3060.2,0.00249155]
[1764738748147,6.63434295,3060.3,3060.2,1.68549155]
[1764738748348,4.82794295,3060.3,3060.2,3.46199155]
[1764738749258,6.63434295,3060.3,3060.2,3.46199155]
[1764738750360,4.82794295,3060.3,3060.2,3.46199155]
[1764738750752,6.63434295,3060.3,3060.2,3.46199155]
[1764738750954,6.63434295,3060.3,3060.2,1.68549155]
[1764738751361,6.63434295,3060.3,3060.2,3.46199155]
[1764738751756,4.82794295,3060.3,3060.2,3.46199155]
[1764738752260,6.63434295,3060.3,3060.2,3.46199155]
[1764738753655,6.63434295,3060.3,3060.2,1.68549155]
[1764738753959,6.63434295,3060.3,3060.2,0.00249155]
[1764738756058,6.63434295,3060.3,3060.2,1.80279155]
[1764738756664,6.63434295,3060.3,3060.2,3.71529155]
[1764738757056,6.63434295,3060.3,3060.2,0.00249155]
[1764738757862,4.7476,3060.0,3059.9,0.00490219]
[1764738758952,4.7476,3060.0,3059.9,0.00805604]
[1764738762166,4.7476,3060.0,3059.9,1.97435604]
[1764738762359,4.7476,3060.0,3059.9,0.00805604]
[1764738764360,5.89665706,3060.0,3059.9,0.00805604]
[1764738766474,5.92281894,3060.0,3059.9,0.00805604]
[1764738766664,4.7476,3060.0,3059.9,0.00805604]
[1764738766864,5.92281894,3060.0,3059.9,0.00805604]
[1764738767066,3.6474,3059.4,3059.3,3.602]
[1764738767366,4.82261894,3059.4,3059.3,3.602]
[1764738767775,3.6474,3059.4,3059.3,7.4808]
[1764738768276,3.6474,3059.4,3059.3,3.88225174]
[1764738769174,4.82261894,3059.4,3059.3,0.00345174]
[1764738769564,4.82261894,3059.4,3058.7,1.74787906]
[1764738769565,3.6474,3058.8,3058.7,1.74787906]
[1764738769872,8.017,3059.0,3058.9,1.9663]
[1764738770168,6.8552,3059.0,3058.9,3.8788]
[1764738770365,4.9856,3059.0,3058.9,3.8788]
[1764738770766,6.8552,3059.0,3058.9,3.88291541]
[1764738771370,3.2078,3059.0,3058.9,3.88291541]
[1764738771571,4.9856,3059.0,3058.9,3.88291541]
[1764738771764,6.8552,3059.0,3058.9,3.88291541]
[1764738771963,9.19221894,3059.0,3058.9,0.00411541]
[1764738775677,8.017,3059.0,3058.9,0.00411541]
[1764738777075,4.8092,3058.5,3058.4,13.049]
[1764738777676,3.6474,3058.5,3058.4,16.9278]
[1764738777872,4.4515,3058.5,3058.4,15.0153]
[1764738778078,4.4515,3058.5,3058.4,13.05173594]
[1764738780882,3.6474,3057.7,3057.6,1.74787906]
[1764738781079,3.2078,3057.7,3057.6,3.8788]
[1764738781278,3.6474,3058.4,3058.3,1.9663]
[1764738781888,3.65043357,3058.4,3058.3,1.97046811]
[1764738782086,3.65043357,3058.4,3058.3,0.00416811]
[1764738783684,3.5998,3057.9,3057.8,6.1872]
[1764738783886,6.8076,3057.9,3057.8,4.524]
[1764738784388,3.2078,3057.9,3057.3,6.555]
[1764738784585,6.8076,3057.9,3057.8,0.00276929]
[1764738789889,6.8076,3057.9,3057.3,6.555]
[1764738790091,3.5998,3057.4,3057.3,6.555]
[1764738790482,3.5998,3057.4,3057.3,10.0475]
[1764738790980,3.5998,3057.4,3057.3,10.05092529]
[1764738791492,3.5998,3057.4,3057.3,8.22162529]
[1764738791893,6.8076,3057.4,3056.5,1.1787]
[1764738792086,1.6965,3056.6,3056.5,4.6712]
[1764738792490,1.1513,3057.0,3056.5,4.6712]
[1764738792690,4.7511,3057.0,3056.5,1.1787]
[1764738792991,3.5998,3056.6,3056.5,3.49601284]
[1764738793492,1.1513,3056.5,3056.0,1.1346]
[1764738793788,3.5998,3056.1,3056.0,3.4925]
[1764738794291,1.1513,3056.5,3055.9,4.871]
[1764738794292,3.5998,3056.0,3055.9,4.871]
[1764738794489,3.5998,3056.0,3055.9,6.70365683]
[1764738794490,3.60387641,3056.0,3055.9,6.70365683]
[1764738794890,1.70057641,3056.0,3055.9,6.70365683]
[1764738795191,3.60387641,3056.0,3055.9,3.49585683]
[1764738795495,1.70057641,3056.0,3055.9,3.49585683]
[1764738795684,0.00407641,3056.0,3055.9,3.49585683]
[1764738795888,1.70057641,3056.0,3055.9,3.49585683]
[1764738796095,4.14587641,3056.0,3055.9,3.49585683]
[1764738797595,6.04917641,3056.0,3055.9,3.49585683]
[1764738798293,4.14587641,3056.0,3055.9,3.49585683]
[1764738798894,2.44937641,3056.0,3055.9,3.49585683]
[1764738799100,1.98561664,3056.0,3055.9,9.65943683]
[1764738799505,6.8076,3056.6,3056.5,1.6632]
[1764738799707,6.8076,3056.6,3056.5,3.4925]
[1764738799895,6.8076,3056.6,3056.5,4.6271]
[1764738800197,4.90772407,3056.6,3056.5,4.6271]
[1764738800408,0.00342407,3056.6,3056.5,4.6271]
[1764738800593,0.00342407,3056.6,3056.5,4.79065]
[1764738800895,0.00490219,3057.3,3056.9,3.4925]
[1764738801102,0.00490219,3057.3,3057.2,3.4925]
[1764738801898,1.1513,3058.5,3058.1,3.4925]
[1764738801899,6.8076,3058.2,3058.1,3.4925]
[1764738802102,6.81113995,3058.2,3058.1,3.49518758]
[1764738802298,6.81113995,3058.2,3058.1,1.66588758]
[1764738803305,6.81113995,3058.2,3058.1,0.00268758]
[1764738808911,6.81113995,3058.2,3058.1,1.66588758]
[1764738809410,4.90783995,3058.2,3058.1,3.49518758]
[1764738809610,6.81113995,3058.2,3058.1,0.00268758]
[1764738810012,6.81113995,3058.2,3058.1,3.49518758]
[1764738810413,3.21133995,3058.2,3058.1,3.49518758]
[1764738811317,3.21133995,3058.2,3058.1,3.65865758]
[1764738811705,5.1377,3058.6,3058.5,4.6271]
[1764738812107,3.2078,3058.6,3058.5,4.6271]
[1764738812708,4.8406,3058.6,3058.5,4.6271]
[1764738812912,4.84289848,3058.6,3058.5,4.6271]
[1764738813128,1.63509848,3058.6,3058.5,4.6271]
[1764738814918,1.42711382,3058.6,3058.5,11.04959977]
[1764738815125,1.0458,3060.0,3058.5,11.04959977]
[1764738815126,3.2078,3060.3,3059.7,3.3029]
[1764738815319,3.3508,3060.3,3059.5,0.7106]
[1764738815623,3.3508,3060.3,3059.5,0.87399]
[1764738815815,1.0458,3060.5,3059.6,7.5389]
[1764738815816,1.6252,3059.7,3059.6,7.5389]
[1764738816017,4.37500219,3060.0,3059.9,3.3838]
[1764738816214,1.6991,3059.6,3059.3,0.00490219]
[1764738816415,3.4186,3059.4,3059.3,0.00490219]
[1764738817616,3.2078,3059.7,3059.6,1.7544]
[1764738817819,6.6264,3059.7,3059.6,1.7544]
[1764738818521,3.4186,3059.4,3059.3,0.00490219]
[1764738819025,3.4186,3059.4,3059.3,1.75930219]
[1764738821023,3.4186,3059.4,3059.3,3.49990219]
[1764738822416,6.6264,3059.7,3059.6,3.495]
[1764738822813,4.9273,3059.7,3059.6,3.495]
[1764738823013,6.6264,3059.7,3059.6,3.495]
[1764738823424,6.6264,3059.7,3059.6,1.7544]
[1764738823621,3.4186,3059.7,3059.6,3.495]
[1764738824915,3.4186,3059.7,3059.6,1.7544]
[1764738825111,0.6767,3059.8,3059.3,0.00490219]
[1764738825112,3.4186,3059.4,3059.3,1.75930219]
[1764738825322,3.4186,3059.4,3059.3,6.91390219]
[1764738825526,3.4186,3059.4,3059.3,8.66830219]
[1764738825926,3.4186,3059.4,3059.3,10.40890219]
[1764738826811,3.4186,3059.4,3059.3,8.66830219]
[1764738827013,3.4186,3059.4,3059.3,3.49990219]
[1764738827524,1.7195,3059.4,3059.3,3.49990219]
[1764738828423,3.4186,3059.4,3059.3,3.49990219]
[1764738829217,1.7195,3059.4,3059.3,3.49990219]
[1764738832520,4.9273,3059.4,3059.3,3.49990219]
[1764738833626,6.6264,3059.4,3059.3,1.75930219]
[1764738833829,6.6264,3059.4,3059.3,3.49990219]
[1764738834029,6.6264,3059.4,3059.3,1.75930219]
[1764738834535,1.7195,3058.8,3058.7,6.7028]
[1764738834724,1.7195,3058.8,3058.7,19.7428]
[1764738834925,3.2078,3059.4,3058.7,19.7428]
[1764738835428,3.2078,3059.4,3059.3,3.495]
[1764738835733,4.9273,3059.4,3059.3,3.495]
[1764738835931,6.6264,3059.4,3059.3,3.495]
[1764738836333,6.6264,3059.4,3059.3,1.7544]
[1764738837635,6.6264,3059.4,3059.3,3.495]
[1764738837836,4.9273,3059.4,3059.3,3.495]
[1764738838144,6.6264,3059.4,3059.3,3.495]
[1764738839329,1.7195,3059.1,3059.0,3.29970634]
[1764738839533,3.4186,3059.1,3059.0,4.82070634]
[1764738839734,1.7195,3059.1,3059.0,4.82070634]
[1764738840330,1.7195,3059.1,3059.0,3.66331219]
[1764738840833,3.4186,3059.1,3059.0,3.66331219]
[1764738841039,3.4186,3059.1,3059.0,1.75930219]
[1764738841342,3.2078,3059.4,3059.3,1.7544]
[1764738841637,4.9273,3059.4,3059.3,3.495]
[1764738842633,1.7195,3059.4,3059.3,3.495]
[1764738842834,3.2903,3059.6,3059.5,3.495]
[1764738843330,4.9894,3059.6,3059.5,3.495]
[1764738844432,4.5433,3059.5,3059.4,2.79717271]
[1764738844634,4.5433,3059.5,3059.4,4.45787271]
[1764738845137,4.5433,3059.5,3059.4,1.16527271]
[1764738845442,3.4689,3059.4,3059.3,5.03525622]
[1764738846346,1.6557,3059.4,3059.3,3.2926]
[1764738846841,3.4689,3059.4,3059.3,3.2926]
[1764738849443,3.4689,3059.4,3059.3,5.04395204]
[1764738849640,3.4689,3059.4,3059.3,16.3296]
[1764738852039,3.4689,3059.3,3059.2,1.75135204]
[1764738852239,3.4689,3059.1,3059.0,19.63195423]
[1764738852446,3.4689,3059.1,3059.0,21.29265423]
[1764738852634,3.4689,3059.1,3059.0,19.54130219]
[1764738853048,3.4689,3059.1,3059.0,17.88060219]
[1764738853950,3.4689,3059.1,3059.0,16.33350219]
[1764738854248,3.4689,3059.1,3059.0,13.04090219]
[1764738854839,3.4689,3059.1,3059.0,14.67280219]
[1764738855040,3.4689,3059.1,3059.0,1.17156056]
[1764738855247,3.4689,3059.1,3059.0,13.03990219]
[1764738858050,3.4689,3059.1,3059.0,14.67180219]
[1764738858251,3.4689,3059.1,3059.0,16.33250219]
[1764738859350,3.4689,3059.1,3059.0,14.67180219]
[1764738860048,3.4689,3059.1,3059.0,16.33250219]
[1764738860247,3.4689,3059.1,3059.0,0.00490219]
[1764738860642,3.4689,3059.1,3059.0,1.63680219]
[1764738860848,3.4689,3059.1,3059.0,3.29750219]
[1764738861244,2.22337718,3059.5,3059.4,1.6319]
[1764738861245,4.5433,3059.5,3059.4,1.6319]
[1764738861453,4.5433,3059.5,3059.4,3.2926]
[1764738861652,4.5433,3059.5,3059.4,1.6319]
[1764738861849,4.5433,3059.5,3059.0,0.95410219]
[1764738862044,1.6557,3059.1,3059.0,4.24670219]
[1764738862351,3.4689,3059.1,3059.0,3.46092219]
[1764738863550,1.6557,3059.1,3059.0,3.46092219]
[1764738865153,3.4689,3059.1,3059.0,3.46092219]
[1764738865445,3.4689,3059.1,3059.0,3.29750219]
[1764738865654,2.3263,3059.3,3059.2,3.2926]
[1764738865851,4.1395,3059.3,3059.2,3.2926]
[1764738867854,4.1395,3059.3,3059.2,1.6319]
[1764738868454,3.4689,3059.1,3059.0,0.00490219]
[1764738868654,3.4689,3059.1,3059.0,13.03890219]
[1764738869340,3.4689,3059.1,3059.0,14.67080219]
[1764738869545,3.4689,3059.1,3059.0,16.33150219]
[1764738869746,3.4689,3059.1,3059.0,14.67080219]
[1764738870150,3.4689,3059.1,3059.0,1.63680219]
[1764738870354,3.4689,3059.1,3059.0,0.00490219]
[1764738872656,3.4689,3058.9,3058.8,12.90457735]
[1764738872849,4.61787718,3058.9,3058.8,4.47680611]
[1764738873050,4.61787718,3058.9,3058.8,4.42632694]
[1764738873457,3.0056,3058.3,3058.2,7.35425837]
[1764738874556,3.9633,3058.5,3058.4,2.9798]
[1764738875160,3.9633,3058.5,3058.4,1.4234]
[1764738875966,3.2642,3058.3,3058.2,7.66585837]
[1764738876259,3.2642,3058.3,3058.2,3.2914]
[1764738879357,1.4714,3058.3,3058.2,4.45805837]
[1764738879556,4.6717,3058.5,3058.4,3.8041]
[1764738879757,3.714,3058.5,3058.4,3.8041]
[1764738880167,4.7673,3058.5,3058.4,3.8041]
[1764738882467,4.7673,3058.5,3058.4,1.9361]
[1764738882666,3.714,3058.3,3058.2,3.10275837]
[1764738882867,3.714,3058.3,3058.1,0.00268758]
[1764738882868,3.714,3058.2,3058.1,0.00268758]
[1764738885068,6.9218,3058.2,3058.1,0.00268758]
[1764738887070,4.7673,3058.0,3057.9,0.00490219]
[1764738888268,4.7673,3058.0,3057.9,0.00830789]
[1764738894066,45.5673,3058.0,3057.9,0.00830789]
[1764738894267,1.9212,3056.9,3056.8,1.9361]
[1764738894569,1.9212,3056.9,3056.8,16.37575837]
[1764738894766,1.0533,3057.5,3056.8,15.37264]
[1764738895361,3.714,3056.9,3056.8,3.97181727]
[1764738895566,1.05623723,3057.5,3056.8,3.97181727]
[1764738896671,1.9212,3056.9,3056.8,3.97181727]
[1764738897170,3.714,3056.9,3056.8,3.97181727]
[1764738897367,3.714,3056.9,3056.8,3.80827727]
[1764738898871,4.3919,3057.0,3056.9,3.8041]
[1764738900677,3.714,3056.9,3056.8,0.00417727]
[1764738900978,4.89058583,3056.9,3056.8,0.00417727]
[1764738901973,3.714,3056.9,3056.8,1.94027727]
[1764738902175,2.5991,3057.0,3056.9,3.8041]
[1764738902876,0.6779,3057.0,3056.9,3.8041]
[1764738903076,0.6779,3057.0,3056.9,3.96763]
[1764738904278,2.3191,3057.0,3056.9,3.96763]
[1764738904467,5.2274,3057.0,3056.9,1.9361]
[1764738904669,3.4364,3056.9,3056.8,3.21197727]